bitfinex-derivatives/quotes_BNBF0:USTF0_20260114
["timestamp","ask_amount","ask_price","bid_price","bid_amount"]
[1768404126767,0.75576321,942.41,940.99,0.18471092]
[1768404126964,0.75576321,942.4,940.99,0.18471092]
[1768404127163,0.75576321,942.39,940.99,0.18471092]
[1768404127367,0.75576321,942.38,940.99,0.18471092]
[1768404127669,0.75576321,942.37,940.99,0.18471092]
[1768404127968,0.75576321,942.36,940.99,0.18471092]
[1768404128165,0.75576321,942.35,940.99,0.18471092]
[1768404128470,0.75576321,942.34,940.99,0.18471092]
[1768404128770,0.75576321,942.33,940.99,0.18471092]
[1768404128966,0.75576321,942.32,940.99,0.18471092]
[1768404129165,0.75576321,942.31,940.99,0.18471092]
[1768404129470,0.75576321,942.3,940.99,0.18471092]
[1768404129667,0.75576321,942.29,940.99,0.18471092]
[1768404129869,0.75576321,942.28,940.99,0.18471092]
[1768404130166,0.75576321,942.27,940.99,0.18471092]
[1768404130366,0.75576321,942.26,940.99,0.18471092]
[1768404130570,1.535,943.13,940.99,0.18471092]
[1768404130764,0.75215422,943.12,940.99,0.18471092]
[1768404130969,0.75215422,943.11,940.99,0.18471092]
[1768404131270,0.75215422,943.1,940.99,0.18471092]
[1768404131569,0.75215422,943.09,940.99,0.18471092]
[1768404131767,0.75215422,943.08,940.99,0.18471092]
[1768404131969,0.75215422,943.07,940.99,0.18471092]
[1768404132266,0.75215422,943.06,940.99,0.18471092]
[1768404132466,0.75215422,943.05,940.99,0.18471092]
[1768404132670,0.75215422,943.04,940.99,0.18471092]
[1768404132867,1.535,943.13,940.99,0.18471092]
[1768404132868,0.75215422,943.03,940.99,0.18471092]
[1768404133068,0.75215422,943.02,940.99,0.18471092]
[1768404133270,0.75215422,943.01,940.99,0.18471092]
[1768404133466,0.75215422,943.0,940.99,0.18471092]
[1768404133670,0.75215422,942.99,940.99,0.18471092]
[1768404133869,0.75215422,942.98,940.99,0.18471092]
[1768404134066,0.75215422,942.97,940.99,0.18471092]
[1768404134267,0.75215422,942.96,940.99,0.18471092]
[1768404134470,0.75215422,942.95,940.99,0.18471092]
[1768404134774,0.75215422,942.94,940.99,0.18471092]
[1768404134970,0.75215422,942.93,940.99,0.18471092]
[1768404135168,0.75215422,942.92,940.99,0.18471092]
[1768404135371,1.535,943.13,940.99,0.18471092]
[1768404135372,0.75215422,942.91,940.99,0.18471092]
[1768404135667,0.75215422,942.9,940.99,0.18471092]
[1768404135869,0.75215422,942.89,940.99,0.18471092]
[1768404136067,0.75215422,942.88,940.99,0.18471092]
[1768404136270,0.75215422,942.87,940.99,0.18471092]
[1768404136472,0.75215422,942.86,940.99,0.18471092]
[1768404136774,0.75215422,942.85,940.99,0.18471092]
[1768404136973,0.75215422,942.84,940.99,0.18471092]
[1768404137169,0.75215422,942.83,940.99,0.18471092]
[1768404137370,0.75215422,942.82,940.99,0.18471092]
[1768404137571,0.75215422,942.81,940.99,0.18471092]
[1768404137774,0.75215422,942.8,940.99,0.18471092]
[1768404137975,0.75215422,942.79,940.99,0.18471092]
[1768404138174,0.75215422,942.78,940.99,0.18471092]
[1768404138476,0.75215422,942.77,940.99,0.18471092]
[1768404138773,0.75215422,942.76,940.99,0.18471092]
[1768404138975,0.75215422,942.75,940.99,0.18471092]
[1768404139172,0.75215422,942.74,940.99,0.18471092]
[1768404139375,0.75215422,942.73,940.99,0.18471092]
[1768404139574,0.75215422,942.72,940.99,0.18471092]
[1768404139875,0.75215422,942.71,940.99,0.18471092]
[1768404140071,0.75215422,942.7,940.99,0.18471092]
[1768404140272,0.75215422,942.69,940.99,0.18471092]
[1768404140475,0.75215422,942.68,940.99,0.18471092]
[1768404140672,0.75215422,942.67,940.99,0.18471092]
[1768404140874,0.75215422,942.66,940.99,0.18471092]
[1768404141175,0.75215422,942.65,940.99,0.18471092]
[1768404141375,0.75215422,942.64,940.99,0.18471092]
[1768404141570,0.75215422,942.63,940.99,0.18471092]
[1768404141771,0.75215422,942.62,940.99,0.18471092]
[1768404142072,0.75215422,942.61,940.99,0.18471092]
[1768404142271,0.75215422,942.6,940.99,0.18471092]
[1768404142472,0.75215422,942.59,940.99,0.18471092]
[1768404142673,0.75215422,942.58,940.99,0.18471092]
[1768404142874,0.75215422,942.57,940.99,0.18471092]
[1768404143072,0.75215422,942.56,940.99,0.18471092]
[1768404143277,0.75215422,942.55,940.99,0.18471092]
[1768404143476,0.75215422,942.54,940.99,0.18471092]
[1768404143774,0.75215422,942.53,940.99,0.18471092]
[1768404143972,0.75215422,942.52,940.99,0.18471092]
[1768404144181,0.75215422,942.51,940.99,0.18471092]
[1768404144477,0.75215422,942.5,940.99,0.18471092]
[1768404144678,0.75215422,942.49,940.99,0.18471092]
[1768404144977,0.75215422,942.48,940.99,0.18471092]
[1768404145180,0.75215422,942.47,940.99,0.18471092]
[1768404145378,0.75215422,942.46,940.99,0.18471092]
[1768404145674,0.75215422,942.45,940.99,0.18471092]
[1768404145879,0.75215422,942.44,940.99,0.18471092]
[1768404146078,0.75215422,942.43,940.99,0.18471092]
[1768404146274,0.75215422,942.42,940.99,0.18471092]
[1768404146476,0.75215422,942.41,940.99,0.18471092]
[1768404146673,0.75215422,942.4,940.99,0.18471092]
[1768404146877,0.75215422,942.39,940.99,0.18471092]
[1768404147078,0.75215422,942.38,940.99,0.18471092]
[1768404147278,0.75215422,942.37,940.99,0.18471092]
[1768404147476,0.75215422,942.36,940.99,0.18471092]
[1768404147678,0.75215422,942.35,940.99,0.18471092]
[1768404147878,0.75215422,942.34,940.99,0.18471092]
[1768404148082,0.75215422,942.33,940.99,0.18471092]
[1768404148282,0.75215422,942.32,940.99,0.18471092]
[1768404148577,0.75215422,942.31,940.99,0.18471092]
[1768404148779,0.75215422,942.3,940.99,0.18471092]
[1768404148978,0.75215422,942.29,940.99,0.18471092]
[1768404149281,0.75215422,942.28,940.99,0.18471092]
[1768404149479,0.75215422,942.27,940.99,0.18471092]
[1768404149680,0.75215422,942.26,940.99,0.18471092]
[1768404149883,0.75215422,942.25,940.99,0.18471092]
[1768404150081,0.75215422,942.24,940.99,0.18471092]
[1768404150279,0.75215422,942.23,940.99,0.18471092]
[1768404150478,0.75215422,942.22,940.99,0.18471092]
[1768404150680,0.75215422,942.21,940.99,0.18471092]
[1768404150880,0.75215422,942.2,940.99,0.18471092]
[1768404151083,0.75215422,942.19,940.99,0.18471092]
[1768404151380,0.75215422,942.18,940.99,0.18471092]
[1768404151578,0.75215422,942.17,940.99,0.18471092]
[1768404151781,0.75215422,942.16,940.99,0.18471092]
[1768404152084,0.75215422,942.15,940.99,0.18471092]
[1768404152380,0.75215422,942.14,940.99,0.18471092]
[1768404152580,0.75215422,942.13,940.99,0.18471092]
[1768404152879,0.75215422,942.12,940.99,0.18471092]
[1768404153184,0.75215422,942.11,940.99,0.18471092]
[1768404153480,1.72,942.64,940.99,0.18471092]
[1768404153685,0.75577547,942.63,940.99,0.18471092]
[1768404153984,0.75577547,942.62,940.99,0.18471092]
[1768404154184,0.75577547,942.61,940.99,0.18471092]
[1768404154379,0.75577547,942.6,940.99,0.18471092]
[1768404154685,0.75577547,942.59,940.99,0.18471092]
[1768404154881,0.75577547,942.58,940.99,0.18471092]
[1768404155080,0.75577547,942.57,940.99,0.18471092]
[1768404155280,0.75577547,942.56,940.99,0.18471092]
[1768404155581,0.75577547,942.55,940.99,0.18471092]
[1768404155782,0.75577547,942.54,940.99,0.18471092]
[1768404155984,0.75577547,942.53,940.99,0.18471092]
[1768404156285,0.75583385,942.52,940.99,0.18471092]
[1768404156484,0.75583385,942.51,941.05,2.5741607]
[1768404156685,0.75583385,942.5,941.05,2.5741607]
[1768404156883,0.75583385,942.49,941.05,2.5741607]
[1768404157181,0.75583385,942.48,941.05,2.5741607]
[1768404157481,0.75583385,942.47,941.05,2.5741607]
[1768404157681,0.75583385,942.46,941.05,2.5741607]
[1768404157981,0.75583385,942.45,941.05,2.5741607]
[1768404158185,0.75583385,942.44,941.05,2.5741607]
[1768404158385,0.75583385,942.43,941.05,2.5741607]
[1768404158584,0.75583385,942.42,941.06,2.5741607]
[1768404158785,0.75583385,942.41,941.06,2.5741607]
[1768404158984,0.75583385,942.4,941.06,2.5741607]
[1768404159183,0.75583385,942.39,941.06,2.5741607]
[1768404159388,0.75583385,942.38,941.06,2.5741607]
[1768404159588,0.75583385,942.37,941.06,2.5741607]
[1768404159786,1.72,942.64,941.06,2.5741607]
[1768404160090,0.75551413,942.63,941.06,2.5741607]
[1768404160387,0.75551413,942.62,941.06,2.5741607]
[1768404160588,0.75551413,942.61,941.06,2.5741607]
[1768404160885,0.75551413,942.6,941.06,2.5741607]
[1768404161089,0.75551413,942.59,941.06,2.5741607]
[1768404161388,0.75551413,942.58,941.06,2.5741607]
[1768404161686,0.75551413,942.57,940.99,0.18471092]
[1768404161985,0.75551413,942.56,940.99,0.18471092]
[1768404162288,1.72,942.64,940.99,0.18471092]
[1768404162289,0.75551413,942.55,940.99,0.18471092]
[1768404162586,0.75551413,942.54,940.99,0.18471092]
[1768404162890,0.75551413,942.53,940.99,0.18471092]
[1768404163085,0.75551413,942.52,940.99,0.18471092]
[1768404163287,0.75551413,942.51,940.99,0.18471092]
[1768404163587,0.75551413,942.5,940.99,0.18471092]
[1768404163785,0.75551413,942.49,941.07,2.5741607]
[1768404163988,0.75551413,942.48,941.07,2.5741607]
[1768404164191,0.75551413,942.47,941.07,2.5741607]
[1768404164386,0.75551413,942.46,941.07,2.5741607]
[1768404164590,0.75551413,942.45,941.07,2.5741607]
[1768404164890,0.75551413,942.44,941.08,2.5741607]
[1768404165086,0.75551413,942.43,941.08,2.5741607]
[1768404165286,0.75551413,942.42,941.08,2.5741607]
[1768404165590,0.75551413,942.41,941.08,2.5741607]
[1768404165890,0.75551413,942.4,941.08,2.5741607]
[1768404166088,0.75551413,942.39,941.08,2.5741607]
[1768404166289,0.75551413,942.38,941.08,2.5741607]
[1768404166489,1.72,942.64,941.08,2.5741607]
[1768404166686,0.75527658,942.63,941.08,2.5741607]
[1768404166985,0.75527658,942.62,941.08,2.5741607]
[1768404167191,0.75527658,942.61,941.08,2.5741607]
[1768404167486,0.75527658,942.6,941.08,2.5741607]
[1768404167688,0.75527658,942.59,941.08,2.5741607]
[1768404167888,0.75527658,942.58,941.08,2.5741607]
[1768404168091,0.75527658,942.57,941.08,2.5741607]
[1768404168392,0.75527658,942.56,941.07,2.5741607]
[1768404168593,0.75527658,942.55,941.07,2.5741607]
[1768404168892,0.75527658,942.54,941.07,2.5741607]
[1768404169189,0.75527658,942.53,941.07,2.5741607]
[1768404169392,0.75527658,942.52,941.07,2.5741607]
[1768404169592,0.75527658,942.51,941.07,2.5741607]
[1768404169790,0.75527658,942.5,941.07,2.5741607]
[1768404169990,0.75527658,942.49,941.07,2.5741607]
[1768404170189,0.75527658,942.48,941.07,2.5741607]
[1768404170393,0.75527658,942.47,941.07,2.5741607]
[1768404170594,0.75527658,942.46,941.06,2.5741607]
[1768404170794,0.75527658,942.45,941.06,2.5741607]
[1768404170995,0.75527658,942.44,941.06,2.5741607]
[1768404171196,0.75527658,942.43,941.06,2.5741607]
[1768404171390,0.75527658,942.42,941.06,2.5741607]
[1768404171592,0.75527658,942.41,941.06,2.5741607]
[1768404171791,0.75527658,942.4,941.06,2.5741607]
[1768404171992,1.72,942.64,941.06,2.5741607]
[1768404172195,0.75501675,942.63,941.06,2.5741607]
[1768404172394,0.75501675,942.62,941.06,2.5741607]
[1768404172596,0.75501675,942.61,941.06,2.5741607]
[1768404172794,0.75501675,942.6,941.06,2.5741607]
[1768404173094,0.75501675,942.59,941.06,2.5741607]
[1768404173293,0.75501675,942.58,941.06,2.5741607]
[1768404173496,0.75501675,942.57,941.06,2.5741607]
[1768404173694,0.75501675,942.56,941.06,2.5741607]
[1768404173896,0.75501675,942.55,941.06,2.5741607]
[1768404174095,0.75501675,942.54,941.1,2.5741607]
[1768404174298,0.75501675,942.53,941.1,2.5741607]
[1768404174496,0.75501675,942.52,941.1,2.5741607]
[1768404174795,0.75501675,942.51,941.1,2.5741607]
[1768404175099,0.75501675,942.5,941.1,2.5741607]
[1768404175296,0.75501675,942.49,941.1,2.5741607]
[1768404175500,0.75501675,942.48,941.1,2.5741607]
[1768404175801,0.75501675,942.47,941.09,2.5741607]
[1768404175996,0.75501675,942.46,941.09,2.5741607]
[1768404176199,0.75501675,942.45,941.09,2.5741607]
[1768404176398,0.75501675,942.44,941.09,2.5741607]
[1768404176598,0.18456888,944.0,941.09,2.5741607]
[1768404176800,0.00940363,943.39,941.09,2.5741607]
[1768404177001,0.75524708,943.38,941.09,2.5741607]
[1768404177201,0.75524708,943.37,941.09,2.5741607]
[1768404177405,0.75524708,943.36,941.08,2.5741607]
[1768404177601,0.75524708,943.35,941.08,2.5741607]
[1768404177799,0.75524708,943.34,941.08,2.5741607]
[1768404177998,0.75524708,943.33,941.08,2.5741607]
[1768404178199,0.75524708,943.32,941.08,2.5741607]
[1768404178500,0.75524708,943.31,941.08,2.5741607]
[1768404178801,0.75524708,943.3,941.08,2.5741607]
[1768404179004,0.75524708,943.29,941.08,2.5741607]
[1768404179202,0.75524708,943.28,941.08,2.5741607]
[1768404179405,0.75524708,943.27,941.08,2.5741607]
[1768404179602,0.75524708,943.26,941.08,2.5741607]
[1768404179902,0.75524708,943.25,941.16,2.5741607]
[1768404180202,0.75524708,943.24,941.16,2.5741607]
[1768404180406,0.75524708,943.23,941.26,2.5741607]
[1768404180606,0.75524708,943.22,941.26,2.5741607]
[1768404180806,0.75524708,943.21,941.26,2.5741607]
[1768404181004,0.75524708,943.2,941.26,2.5741607]
[1768404181206,0.75524708,943.19,941.26,2.5741607]
[1768404181507,0.75524708,943.18,941.27,2.5741607]
[1768404181705,0.75524708,943.17,941.27,2.5741607]
[1768404181903,0.75524708,943.16,941.27,2.5741607]
[1768404182103,0.75524708,943.15,941.36,2.5741607]
[1768404182308,0.75524708,943.14,941.36,2.5741607]
[1768404182604,0.75524708,943.13,941.33,2.5741607]
[1768404182802,0.75524708,943.12,941.33,2.5741607]
[1768404183001,1.57,943.38,940.99,3.85363912]
[1768404183002,0.75524708,943.11,941.32,2.5741607]
[1768404183202,0.75524708,943.1,941.32,2.5741607]
[1768404183405,0.75524708,943.09,941.32,2.5741607]
[1768404183604,0.75524708,943.08,941.31,2.5741607]
[1768404183808,0.75524708,943.07,941.31,2.5741607]
[1768404184104,0.75524708,943.06,941.26,2.5741607]
[1768404184304,0.75524708,943.05,941.26,2.5741607]
[1768404184609,0.75524708,943.04,941.2,2.5741607]
[1768404184808,0.75430925,943.03,941.2,2.5741607]
[1768404185010,0.75430925,943.02,941.16,2.5741607]
[1768404185209,0.75430925,943.01,941.16,2.5741607]
[1768404185509,0.75430925,943.0,941.16,2.5741607]
[1768404185705,0.75430925,942.99,941.09,2.5741607]
[1768404186005,0.75430925,942.98,940.99,2.75887162]
[1768404186205,0.75430925,942.97,940.99,2.75887162]
[1768404186405,0.75430925,942.96,940.99,2.75887162]
[1768404186709,0.75430925,942.95,940.99,2.75887162]
[1768404186909,0.75430925,942.94,940.99,0.18471092]
[1768404187106,0.75430925,942.93,940.99,0.18471092]
[1768404187309,1.57,943.38,940.99,0.18471092]
[1768404187310,0.75430925,942.92,940.99,0.18471092]
[1768404187507,0.75430925,942.91,940.99,0.18471092]
[1768404187710,0.75430925,942.9,940.99,0.18471092]
[1768404188008,0.75430925,942.89,940.99,0.18471092]
[1768404188205,0.75430925,942.88,940.99,0.18471092]
[1768404188407,0.75430925,942.87,940.99,0.18471092]
[1768404188610,0.75430925,942.86,940.99,0.18471092]
[1768404188810,0.75430925,942.85,940.99,0.18471092]
[1768404189006,0.75430925,942.84,940.99,0.18471092]
[1768404189211,0.75430925,942.83,940.99,0.18471092]
[1768404189409,0.75430925,942.82,940.99,0.18471092]
[1768404189610,0.75430925,942.81,940.99,0.18471092]
[1768404189810,0.75430925,942.8,940.99,0.18471092]
[1768404190106,0.75430925,942.79,940.99,0.18471092]
[1768404190308,0.75430925,942.78,940.99,0.18471092]
[1768404190507,0.75430925,942.77,940.99,0.18471092]
[1768404190710,0.75430925,942.76,940.99,0.18471092]
[1768404191008,0.75430925,942.75,940.99,0.18471092]
[1768404191307,0.75430925,942.74,940.99,0.18471092]
[1768404191508,0.75430925,942.73,940.99,0.18471092]
[1768404191810,0.75430925,942.72,940.99,0.18471092]
[1768404192010,0.75430925,942.71,940.99,0.18471092]
[1768404192207,0.75430925,942.7,940.99,0.18471092]
[1768404192512,0.75430925,942.69,940.99,0.18471092]
[1768404192706,0.75430925,942.68,940.99,0.18471092]
[1768404192910,0.75430925,942.67,940.99,0.18471092]
[1768404193112,0.75430925,942.66,940.99,0.18471092]
[1768404193307,0.75430925,942.65,940.99,0.18471092]
[1768404193510,0.75430925,942.64,940.99,0.18471092]
[1768404193711,0.75430925,942.63,940.99,0.18471092]
[1768404193912,0.75430925,942.62,940.99,0.18471092]
[1768404194212,0.75430925,942.61,940.99,0.18471092]
[1768404194508,0.75430925,942.6,940.99,0.18471092]
[1768404194712,0.75430925,942.59,940.99,0.18471092]
[1768404194910,0.75430925,942.58,940.99,0.18471092]
[1768404195211,0.75430925,942.57,940.99,0.18471092]
[1768404195411,0.75430925,942.56,940.99,0.18471092]
[1768404195612,0.75430925,942.55,940.99,0.18471092]
[1768404195806,0.75430925,942.54,940.99,0.18471092]
[1768404196011,0.75430925,942.53,940.99,0.18471092]
[1768404196308,0.75430925,942.52,940.99,0.18471092]
[1768404196511,0.75430925,942.51,940.99,0.18471092]
[1768404196711,0.75430925,942.5,940.99,0.18471092]
[1768404196912,0.75430925,942.49,940.99,0.18471092]
[1768404197210,0.75430925,942.48,940.99,0.18471092]
[1768404197412,0.75430925,942.47,940.99,0.18471092]
[1768404197612,0.75430925,942.46,940.99,0.18471092]
[1768404197812,0.75430925,942.45,940.99,0.18471092]
[1768404198012,0.75430925,942.44,940.99,0.18471092]
[1768404198213,0.75430925,942.43,940.99,0.18471092]
[1768404198513,0.75430925,942.42,940.99,0.18471092]
[1768404198713,0.75430925,942.41,940.99,0.18471092]
[1768404199010,0.75430925,942.4,940.99,0.18471092]
[1768404199213,0.75430925,942.39,940.99,0.18471092]
[1768404199413,0.75430925,942.38,940.99,0.18471092]
[1768404199710,0.75430925,942.37,940.99,0.18471092]
[1768404200013,0.75430925,942.36,940.99,0.18471092]
[1768404200214,0.75430925,942.35,940.99,0.18471092]
[1768404200409,0.75430925,942.34,940.99,0.18471092]
[1768404200614,0.75430925,942.33,940.99,0.18471092]
[1768404200810,0.75430925,942.32,940.99,0.18471092]
[1768404201008,0.75430925,942.31,940.99,0.18471092]
[1768404201213,0.75430925,942.3,940.99,0.18471092]
[1768404201510,0.75430925,942.29,940.99,0.18471092]
[1768404201710,0.75430925,942.28,940.99,0.18471092]
[1768404201912,0.75430925,942.27,940.99,0.18471092]
[1768404202110,0.75430925,942.26,940.99,0.18471092]
[1768404202313,1.777,942.75,940.99,0.18471092]
[1768404202314,0.75430925,942.25,940.99,0.18471092]
[1768404202509,0.75430925,942.24,940.99,0.18471092]
[1768404202717,0.75430925,942.23,940.99,0.18471092]
[1768404202910,0.75430925,942.22,940.99,0.18471092]
[1768404203114,0.75430925,942.21,940.99,0.18471092]
[1768404203314,0.75430925,942.2,940.99,0.18471092]
[1768404203513,0.75430925,942.19,940.99,0.18471092]
[1768404203712,0.75430925,942.18,940.99,0.18471092]
[1768404203914,0.75430925,942.17,940.99,0.18471092]
[1768404204117,0.75430925,942.16,940.99,0.18471092]
[1768404204314,0.75430925,942.15,940.99,0.18471092]
[1768404204518,0.75571714,942.14,940.99,0.18471092]
[1768404204818,0.75571714,942.13,940.99,0.18471092]
[1768404205013,0.75571714,942.12,940.99,0.18471092]
[1768404205218,0.75571714,942.11,940.99,0.18471092]
[1768404205518,0.75571714,942.1,940.99,0.18471092]
[1768404205715,0.75571714,942.09,940.99,0.18471092]
[1768404205916,0.75571714,942.08,940.99,0.18471092]
[1768404206218,0.75571714,942.07,940.99,0.18471092]
[1768404206414,0.75571714,942.06,940.99,0.18471092]
[1768404206614,0.75571714,942.05,940.99,0.18471092]
[1768404206813,0.75571714,942.04,940.99,0.18471092]
[1768404207018,0.75571714,942.03,940.99,0.18471092]
[1768404207316,0.75571714,942.02,940.99,0.18471092]
[1768404207514,1.777,942.75,940.99,0.18471092]
[1768404207515,0.75571714,942.01,940.99,0.18471092]
[1768404207817,0.75571714,942.0,940.99,0.18471092]
[1768404208018,0.75571714,941.99,940.99,0.18471092]
[1768404208218,0.75571714,941.98,940.99,0.18471092]
[1768404208518,0.75571714,941.97,940.99,0.18471092]
[1768404208718,0.75571714,941.96,940.09,2.5741607]
[1768404209018,0.75571714,941.95,940.85,0.18477713]
[1768404209314,0.75571714,941.94,940.06,2.5741607]
[1768404209519,0.75571714,941.93,940.79,0.18479037]
[1768404209713,0.75571714,941.92,940.79,0.18479037]
[1768404209915,0.75571714,941.91,939.93,2.5741607]
[1768404210114,0.75571714,941.9,940.79,0.1847992]
[1768404210315,0.75571714,941.89,939.93,2.5741607]
[1768404210616,0.75571714,941.88,940.82,0.18479184]
[1768404210815,0.75571714,941.87,939.92,2.5741607]
[1768404211017,0.75571714,941.86,939.93,2.5741607]
[1768404211219,0.75571714,941.85,940.84,0.18479332]
[1768404211417,0.75571714,941.84,939.93,2.5741607]
[1768404211614,0.75571714,941.83,940.85,0.1847943]
[1768404211816,0.75571714,941.82,940.85,0.1847943]
[1768404212019,0.75571714,941.81,939.9,2.5741607]
[1768404212218,0.75571714,941.8,940.86,0.18479675]
[1768404212419,0.75571714,941.79,939.9,2.5741607]
[1768404212625,0.75571714,941.78,939.92,2.5741607]
[1768404212821,0.75571714,941.77,940.88,0.18479233]
[1768404213117,1.78492923,942.75,939.58,3.6689282]
[1768404213118,1.777,942.75,939.85,2.5741607]
[1768404213318,0.75230683,942.74,940.89,0.18479577]
[1768404213521,0.00958549,942.71,939.85,2.5741607]
[1768404213721,0.75230683,942.7,940.89,0.18475162]
[1768404213917,0.00958549,942.71,940.89,0.18475162]
[1768404213918,0.75230683,942.69,940.89,0.18475162]
[1768404214122,0.75230683,942.68,939.81,2.5741607]
[1768404214318,0.75230683,942.67,940.89,0.18475554]
[1768404214521,0.75230683,942.66,939.81,2.5741607]
[1768404214722,0.75230683,942.65,939.79,2.5741607]
[1768404214923,0.75230683,942.64,940.89,0.18475702]
[1768404215122,0.75230683,942.63,939.79,2.5741607]
[1768404215320,0.75230683,942.62,940.89,0.18475947]
[1768404215623,0.75230683,942.61,939.77,2.5741607]
[1768404215822,0.75230683,942.6,940.89,0.18476045]
[1768404216019,0.75230683,942.59,940.89,0.18476045]
[1768404216224,0.75230683,942.58,939.77,2.5741607]
[1768404216424,0.75230683,942.57,940.89,0.1847629]
[1768404216625,0.75230683,942.56,939.77,2.5741607]
[1768404216824,0.75230683,942.55,939.75,2.5741607]
[1768404217120,0.75230683,942.54,939.75,2.5741607]
[1768404217321,0.75230683,942.53,939.74,2.5741607]
[1768404217522,0.75230683,942.52,940.44,0.18476977]
[1768404217726,0.75230683,942.51,940.44,0.18476977]
[1768404217922,0.75230683,942.5,940.44,0.18476977]
[1768404218122,0.75230683,942.49,940.44,0.18476977]
[1768404218324,0.75230683,942.48,940.44,0.18476977]
[1768404218530,0.75230683,942.47,940.44,0.18476977]
[1768404218723,0.75230683,942.46,940.44,0.18476977]
[1768404218925,0.75230683,942.45,940.44,0.18476977]
[1768404219129,0.75230683,942.44,940.44,0.18476977]
[1768404219329,0.75230683,942.43,940.44,0.18476977]
[1768404219528,0.75230683,942.42,940.44,0.18476977]
[1768404219728,0.75230683,942.41,940.44,0.18476977]
[1768404219928,0.75230683,942.4,940.44,0.18476977]
[1768404220126,0.75230683,942.39,940.44,0.18476977]
[1768404220330,0.75230683,942.38,940.44,0.18476977]
[1768404220528,0.75230683,942.37,940.44,0.18476977]
[1768404220730,0.75230683,942.36,940.44,0.18476977]
[1768404220931,0.75230683,942.35,940.44,0.18476977]
[1768404221128,0.75230683,942.34,940.44,0.18476977]
[1768404221330,0.75230683,942.33,940.44,0.18476977]
[1768404221529,0.75230683,942.32,940.44,0.18476977]
[1768404221828,0.75230683,942.31,940.44,0.18476977]
[1768404222028,0.75230683,942.3,940.44,0.18476977]
[1768404222233,0.75230683,942.29,940.44,0.18476977]
[1768404222535,0.75230683,942.28,940.44,0.18476977]
[1768404222833,0.75230683,942.27,940.44,0.18476977]
[1768404223033,0.75230683,942.26,940.44,0.18476977]
[1768404223233,0.75230683,942.25,940.44,0.18476977]
[1768404223533,0.75230683,942.24,940.44,0.18476977]
[1768404223728,0.75230683,942.23,940.44,0.18476977]
[1768404223928,0.75230683,942.22,940.44,0.18476977]
[1768404224135,0.75230683,942.21,940.44,0.18476977]
[1768404224334,0.75230683,942.2,940.44,0.18476977]
[1768404224535,0.75230683,942.19,940.44,0.18476977]
[1768404224735,0.75230683,942.18,940.44,0.18476977]
[1768404225036,0.75230683,942.17,940.44,0.18476977]
[1768404225239,0.75230683,942.16,940.44,0.18476977]
[1768404225436,0.75230683,942.15,940.44,0.18476977]
[1768404225637,0.75230683,942.14,940.44,0.18476977]
[1768404225838,0.75230683,942.13,940.44,0.18476977]
[1768404226035,0.75230683,942.12,940.44,0.18476977]
[1768404226238,0.75230683,942.11,940.44,0.18476977]
[1768404226535,0.75230683,942.1,940.44,0.18476977]
[1768404226741,0.75230683,942.09,940.44,0.18476977]
[1768404226939,0.75230683,942.08,940.44,0.18476977]
[1768404227135,0.75230683,942.07,940.44,0.18476977]
[1768404227334,1.777,942.75,940.44,0.18476977]
[1768404227335,0.75230683,942.06,940.44,0.18476977]
[1768404227536,0.75230683,942.05,940.44,0.18476977]
[1768404227738,0.75230683,942.04,940.44,0.18476977]
[1768404227936,0.75230683,942.03,940.44,0.18476977]
[1768404228137,0.75230683,942.02,940.44,0.18476977]
[1768404228340,0.75230683,942.01,940.44,0.18476977]
[1768404228638,0.75230683,942.0,940.44,0.18476977]
[1768404228841,0.75230683,941.99,940.44,0.18476977]
[1768404229038,0.75230683,941.98,940.44,0.18476977]
[1768404229337,0.75315629,941.97,940.44,0.18476977]
[1768404229541,0.75315629,941.96,940.44,0.18476977]
[1768404229743,1.777,942.75,940.44,0.18476977]
[1768404230744,0.75351918,942.74,940.44,0.18476977]
[1768404231043,0.75351918,942.73,940.44,0.18476977]
[1768404231244,0.75351918,942.72,940.44,0.18476977]
[1768404231445,0.75351918,942.71,940.44,0.18476977]
[1768404231645,0.75351918,942.7,940.44,0.18476977]
[1768404231844,0.75351918,942.69,940.44,0.18476977]
[1768404232040,0.75351918,942.68,940.44,0.18476977]
[1768404232241,0.75351918,942.67,940.44,0.18476977]
[1768404232443,0.75351918,942.66,940.44,0.18476977]
[1768404232644,0.75351918,942.65,940.44,0.18476977]
[1768404232946,0.75351918,942.64,940.44,0.18476977]
[1768404233245,0.75351918,942.63,940.44,0.18476977]
[1768404233448,0.75351918,942.62,940.44,0.18476977]
[1768404233649,0.75351918,942.61,940.44,0.18476977]
[1768404233846,0.75351918,942.6,940.44,0.18476977]
[1768404234047,0.75351918,942.59,940.44,0.18476977]
[1768404234247,0.75351918,942.58,940.44,0.18476977]
[1768404234446,0.75351918,942.57,940.44,0.18476977]
[1768404234646,0.75351918,942.56,940.44,0.18476977]
[1768404234844,0.75351918,942.55,940.44,0.18476977]
[1768404235144,0.75351918,942.54,940.44,0.18476977]
[1768404235448,0.75351918,942.53,940.44,0.18476977]
[1768404235642,0.75351918,942.52,940.44,0.18476977]
[1768404235842,0.75351918,942.51,940.44,0.18476977]
[1768404236045,0.75351918,942.5,940.44,0.18476977]
[1768404236245,0.75351918,942.49,940.44,0.18476977]
[1768404236444,0.75351918,942.48,940.44,0.18476977]